bitfinex-derivatives/quotes_SOLF0:USTF0_20251216
["timestamp","ask_amount","ask_price","bid_price","bid_amount"]
[1765899176364,0.05104584,128.26,128.25,2.4]
[1765899177351,0.05104584,128.26,128.24,7.0195]
[1765899177562,0.05104584,128.26,128.25,2.4]
[1765899178055,0.00104584,128.26,128.25,2.4]
[1765899179546,0.00104584,128.26,128.25,3.96]
[1765899180253,0.00104584,128.26,128.25,2.35]
[1765899180657,0.00104584,128.26,128.25,3.91]
[1765899181154,0.00104584,128.26,128.25,7.019]
[1765899181354,4.78104584,128.26,128.23,0.05701959]
[1765899181560,0.00104584,128.26,128.23,0.05701959]
[1765899181760,0.00104584,128.26,128.23,2.40701959]
[1765899181965,0.00104584,128.26,128.24,1.92309017]
[1765899182167,0.00104584,128.26,128.25,8.94209017]
[1765899182363,0.00104584,128.26,128.25,11.29209017]
[1765899182656,0.00104584,128.26,128.23,0.05701959]
[1765899182862,0.00104584,128.26,128.16,111.6064]
[1765899182863,3.22,128.25,128.16,111.6064]
[1765899183065,3.22,128.25,128.19,1.92448738]
[1765899183751,3.22,128.25,128.2,4.33448738]
[1765899183957,25.56337288,128.29,128.18,109.2411]
[1765899183958,3.24414999,128.24,128.21,1.98290319]
[1765899184161,3.24414999,128.24,128.21,0.05430245]
[1765899184363,0.05414999,128.24,128.21,4.39037575]
[1765899184555,0.05414999,128.24,128.21,2.46430245]
[1765899184757,3.24414999,128.24,128.21,0.05430245]
[1765899185163,0.05414999,128.24,128.21,4.39038096]
[1765899185353,0.05414999,128.24,128.23,2.41]
[1765899185663,0.00414999,128.24,128.23,2.41]
[1765899185964,0.00414999,128.24,128.23,27.45]
[1765899186155,3.19,128.36,128.3,111.5017]
[1765899186455,3.19,128.36,128.29,109.1438]
[1765899186665,3.19,128.36,128.33,7.0144]
[1765899186963,3.19,128.39,128.35,1.92422569]
[1765899187170,0.05681943,128.38,128.36,7.06480793]
[1765899188055,3.24681943,128.38,128.36,0.05190793]
[1765899188256,4.80681943,128.38,128.29,68.64]
[1765899188459,3.19,128.36,128.32,1.92014716]
[1765899189066,3.19,128.36,128.31,1.92014716]
[1765899189264,3.2444213,128.35,128.32,0.05362983]
[1765899191053,3.19,128.34,128.32,0.00362983]
[1765899191554,4.75,128.33,128.32,0.00362983]
[1765899191870,3.19,128.32,128.23,2.41]
[1765899192164,3.19,128.3,128.26,1.91921083]
[1765899192755,69.19,128.33,128.26,4.32921083]
[1765899192955,0.05640498,128.31,128.28,0.05849747]
[1765899193158,0.05640498,128.31,128.28,9.48569747]
[1765899193358,0.05640498,128.31,128.29,1.91860387]
[1765899193562,3.24640498,128.31,128.28,0.05849747]
[1765899193770,0.05640498,128.31,128.28,7.07569747]
[1765899194355,0.05640498,128.31,128.29,9.4266]
[1765899194565,0.05640498,128.31,128.3,1.91871573]
[1765899195766,0.05640498,128.31,128.29,7.0166]
[1765899196461,0.05640498,128.31,128.3,4.33044826]
[1765899196668,0.05640498,128.31,128.3,2.41]
[1765899197161,0.05640498,128.31,128.29,7.0166]
[1765899197363,0.05640498,128.31,128.3,1.92192236]
[1765899198356,0.05640498,128.31,128.28,0.05849747]
[1765899198560,0.05640498,128.31,128.29,1.92320394]
[1765899198965,0.05640498,128.31,128.29,8.93990394]
[1765899199166,0.05640498,128.31,128.28,0.05849747]
[1765899199368,0.05640498,128.31,128.29,1.92428282]
[1765899199865,3.24640498,128.31,128.28,0.05849747]
[1765899200271,10.26250498,128.31,128.28,0.05849747]
[1765899200463,3.19,128.3,128.28,0.05849747]
[1765899200973,3.19,128.29,128.21,66.26]
[1765899201268,3.19,128.29,128.23,1.92663316]
[1765899201572,3.19,128.24,128.17,111.7078]
[1765899201874,3.19,128.24,128.2,1.92804712]
[1765899202171,3.24050633,128.22,128.19,0.02220207]
[1765899202357,0.05050633,128.22,128.19,4.41083188]
[1765899202558,0.05050633,128.22,128.2,1.92852668]
[1765899202869,0.05050633,128.22,128.19,2.48220207]
[1765899203167,0.05050633,128.22,128.2,8.95022678]
[1765899203473,0.05050633,128.22,128.21,4.38893324]
[1765899203674,0.05050633,128.22,128.21,2.46]
[1765899204062,69.19,128.28,128.23,7.0201]
[1765899204459,3.19,128.27,128.23,7.0201]
[1765899204670,3.19,128.27,128.24,7.0195]
[1765899204869,3.19,128.27,128.21,2.46]
[1765899205071,3.241162,128.27,128.24,0.05275188]
[1765899205276,8.99897099,128.27,128.24,0.05745999]
[1765899205474,3.19,128.26,128.24,0.05745999]
[1765899205774,3.19,128.25,128.24,0.05745999]
[1765899206161,3.19,128.26,128.24,0.05745999]
[1765899206366,0.05409002,128.27,128.24,0.05745999]
[1765899206771,0.05409002,128.27,128.25,7.0189]
[1765899207262,3.24409002,128.27,128.24,0.05745999]
[1765899207463,3.19,128.25,128.24,0.05745999]
[1765899207662,3.19,128.25,128.18,111.7025]
[1765899207877,3.19,128.25,128.2,4.3912879]
[1765899208074,3.19,128.25,128.21,1.9312879]
[1765899208274,3.19,128.25,128.2,2.46]
[1765899208476,3.19,128.25,128.21,1.93162605]
[1765899208676,0.05784444,128.24,128.21,4.39162605]
[1765899208877,0.05784444,128.24,128.21,2.46]
[1765899209375,0.05784444,128.24,128.2,2.46]
[1765899209572,0.05784444,128.24,128.21,1.93201907]
[1765899209773,3.24784444,128.24,128.14,2.46]
[1765899210080,0.05681706,128.21,128.19,1.93209301]
[1765899210884,0.05681706,128.21,128.19,4.39209301]
[1765899211177,0.05681706,128.21,128.2,4.39209301]
[1765899211388,0.05681706,128.21,128.2,2.46]
[1765899211881,3.19,128.29,128.23,109.2007]
[1765899212083,3.19,128.29,128.24,4.3409345]
[1765899212381,3.19,128.31,128.26,2.41]
[1765899212582,3.19,128.31,128.26,4.34089768]
[1765899212784,0.05546537,128.3,128.27,1.98492975]
[1765899213176,0.05546537,128.3,128.27,0.05403207]
[1765899213475,0.05546537,128.3,128.28,7.0173]
[1765899213672,0.05546537,128.3,128.27,0.05403207]
[1765899213876,3.25546537,128.3,128.27,0.05403207]
[1765899214175,3.32546537,128.3,128.27,0.05403207]
[1765899214683,3.27,128.28,128.27,0.05403207]
[1765899214988,3.32546537,128.3,128.27,0.05403207]
[1765899215880,0.05546537,128.3,128.27,7.07193207]
[1765899216382,0.05546537,128.3,128.28,9.4174]
[1765899216576,0.05546537,128.3,128.28,7.0174]
[1765899218079,0.05546537,128.3,128.29,2.4]
[1765899221187,0.05546537,128.3,128.28,7.0174]
[1765899221374,0.05546537,128.3,128.29,1.92986386]
[1765899221892,0.05546537,128.3,128.29,2.4]
[1765899223789,0.05546537,128.3,128.28,7.0174]
[1765899223988,0.05546537,128.3,128.28,9.4174]
[1765899224184,0.05546537,128.3,128.29,1.92943513]
[1765899224491,0.05546537,128.3,128.28,7.0174]
[1765899225279,3.32546537,128.3,128.27,0.05403207]
[1765899225489,3.27,128.28,128.27,0.00403207]
[1765899225786,3.27,128.26,128.19,2.4]
[1765899225993,3.27,128.25,128.22,1.93080141]
[1765899226187,3.27,128.25,128.2,1.93080141]
[1765899226382,3.27,128.25,128.19,1.93091147]
[1765899226690,3.32887638,128.23,128.18,111.6944]
[1765899226993,0.05887638,128.23,128.19,4.380846]
[1765899227202,0.05887638,128.23,128.2,1.930846]
[1765899227493,3.32887638,128.23,128.19,2.45]
[1765899227694,3.32887638,128.23,128.2,1.93030803]
[1765899228586,3.32887638,128.23,128.21,7.0211]
[1765899228884,0.05887638,128.23,128.21,7.0211]
[1765899231591,0.05887638,128.23,128.21,9.4711]
[1765899232094,3.32887638,128.23,128.19,7.0219]
[1765899232297,3.32887638,128.23,128.2,1.92993843]
[1765899232489,3.32887638,128.23,128.21,4.37993843]
[1765899232490,0.05887638,128.23,128.21,4.37993843]
[1765899232696,0.05887638,128.23,128.21,2.45]
[1765899232903,0.05887638,128.23,128.21,9.4711]
[1765899233100,0.05887638,128.23,128.22,1.93061463]
[1765899233505,0.05887638,128.23,128.21,9.4711]
[1765899233704,0.05887638,128.23,128.21,7.0211]
[1765899234103,0.05887638,128.23,128.21,9.4711]
[1765899234706,0.05887638,128.23,128.22,1.93153669]
[1765899234909,0.05887638,128.23,128.21,7.0211]
[1765899236097,0.05887638,128.23,128.18,111.6921]
[1765899236303,3.32887638,128.23,128.2,1.93186633]
[1765899237112,3.32887638,128.23,128.16,2.45]
[1765899237297,3.32887638,128.23,128.19,1.9320118]
[1765899237503,3.27,128.22,128.19,1.9320118]
[1765899237712,3.27,128.22,128.13,111.7308]
[1765899237914,0.05519353,128.19,128.16,1.93199032]
[1765899238699,0.05519353,128.19,128.16,113.63959032]
[1765899238905,0.05519353,128.19,128.17,2.45]
[1765899239306,0.05519353,128.19,128.17,9.4733]
[1765899239612,0.05519353,128.19,128.18,1.93104169]
[1765899239810,0.05519353,128.19,128.18,4.38104169]
[1765899240011,0.05519353,128.19,128.18,2.45]
[1765899240815,3.27,128.25,128.22,7.0206]
[1765899241012,455.48763995,128.35,128.22,7.0206]
[1765899241013,5.75488097,128.3,128.23,4.33055123]
[1765899241211,3.27,128.29,128.25,1.93055123]
[1765899241411,3.27,128.29,128.24,1.93055123]
[1765899241607,3.27,128.28,128.24,1.93079386]
[1765899241808,3.31944022,128.27,128.25,0.05134025]
[1765899242308,0.04944022,128.27,128.25,0.05134025]
[1765899242506,0.04944022,128.27,128.26,1.93112062]
[1765899242710,3.27,128.33,128.25,0.05134025]
[1765899242910,3.27,128.33,128.28,1.93069344]
[1765899243217,3.27,128.33,128.26,2.4]
[1765899243415,26.609827,128.33,128.27,1.93127103]
[1765899243625,3.27,128.33,128.27,1.93127103]
[1765899243813,0.05160192,128.31,128.29,2.45641592]
[1765899244119,0.05316194,128.31,128.29,0.05641592]
[1765899244624,0.05316194,128.31,128.3,4.33092425]
[1765899244915,0.05316194,128.31,128.3,2.4]
[1765899246109,0.05316194,128.31,128.29,9.47311592]
[1765899246522,0.05316194,128.31,128.3,2.4]
[1765899248018,3.23316194,128.31,128.29,0.05641592]
[1765899248720,3.18,128.3,128.29,0.05641592]
[1765899249913,0.05316194,128.31,128.29,0.05641592]
[1765899250109,3.23316194,128.31,128.29,0.05641592]
[1765899251720,3.18,128.29,128.22,109.2112]
[1765899251917,3.18,128.29,128.24,1.93012067]
[1765899252117,10.197,128.29,128.24,1.93012067]
[1765899252317,3.18,128.28,128.24,1.93012067]
[1765899252523,3.18,128.28,128.24,4.39012067]
[1765899252724,0.05355606,128.27,128.25,1.9836734]
[1765899252917,0.05355606,128.27,128.25,0.05355273]
[1765899253113,0.05355606,128.27,128.25,9.00240632]
[1765899253313,0.05355606,128.27,128.26,4.39001272]
[1765899253521,0.05355606,128.27,128.26,2.46]
[1765899254022,0.05355606,128.27,128.25,7.07235273]
[1765899254324,3.23355606,128.27,128.25,0.05355273]
[1765899254525,0.05355606,128.27,128.25,0.05355273]
[1765899254821,0.05355606,128.27,128.26,4.39023927]
[1765899255126,0.05355606,128.27,128.25,7.07255273]
[1765899255517,0.05355606,128.27,128.25,0.05355273]
[1765899255719,3.23355606,128.27,128.25,0.05355273]
[1765899256319,0.05355606,128.27,128.25,0.05355273]
[1765899257128,3.23355606,128.27,128.25,0.05355273]
[1765899259326,3.18,128.26,128.25,0.00355273]
[1765899259531,3.23355606,128.27,128.25,0.00355273]
[1765899260232,11.0051161,128.26,128.25,0.00355273]
[1765899260435,3.18,128.26,128.25,0.00355273]
[1765899261225,4.74,128.26,128.25,0.00355273]
[1765899261428,3.18,128.26,128.25,0.00355273]
[1765899262725,4.74,128.26,128.25,0.00355273]
[1765899262930,3.18,128.24,128.16,111.7675]
[1765899263231,3.18,128.24,128.19,1.93126528]
[1765899263435,3.18,128.24,128.19,4.44126528]
[1765899263627,3.18,128.24,128.19,2.51]
[1765899263822,0.05686192,128.23,128.22,7.0205]
[1765899264730,0.05686192,128.23,128.21,2.51]
[1765899265234,0.05686192,128.23,128.22,4.44114575]
[1765899265537,0.05686192,128.23,128.22,2.51]
[1765899265727,11.0051161,128.31,128.23,2.45]
[1765899265929,11.0051161,128.31,128.25,1.93128085]
[1765899265930,3.18,128.3,128.25,1.93128085]
[1765899266128,3.18,128.3,128.21,2.45]
[1765899266427,3.18,128.27,128.23,7.02]
[1765899266827,3.23173573,128.26,128.24,0.05620141]
[1765899268939,3.18,128.25,128.24,0.05620141]
[1765899269841,3.23173573,128.26,128.24,0.05620141]
[1765899270537,3.18,128.23,128.15,2.51]
[1765899270745,3.18,128.21,128.17,1.93448006]
[1765899271133,3.18,128.21,128.16,1.93448006]
[1765899271335,3.18,128.19,128.09,2.51]
[1765899271542,0.05854048,128.15,128.12,1.93466733]
[1765899271733,3.23854048,128.15,128.12,1.93466733]
[1765899272438,0.05854048,128.15,128.12,4.44466733]
[1765899272635,0.05854048,128.15,128.12,2.51]
[1765899272837,0.05854048,128.15,128.14,2.51]
[1765899273445,3.18,128.22,128.16,2.45]
[1765899273644,66.04,128.23,128.18,2.45]
[1765899273938,3.14,128.25,128.2,1.93175777]
[1765899274143,3.14,128.25,128.21,7.021]
[1765899274538,3.28435306,128.24,128.22,0.05521202]
[1765899274846,3.28831448,128.24,128.22,0.05577388]
[1765899275539,0.05831448,128.24,128.22,0.05577388]
[1765899276143,3.28831448,128.24,128.22,0.05577388]
[1765899277039,0.05831448,128.24,128.22,0.05577388]
[1765899277233,0.05831448,128.24,128.22,7.07627388]
[1765899279355,3.28831448,128.24,128.22,0.05577388]
[1765899280341,0.05831448,128.24,128.22,0.05577388]
[1765899280761,3.28831448,128.24,128.22,0.05577388]
[1765899282150,0.05831448,128.24,128.22,0.05577388]
[1765899282350,0.05831448,128.24,128.23,2.45]
[1765899284147,0.05831448,128.24,128.22,7.07607388]
[1765899284350,3.28831448,128.24,128.22,7.07607388]
[1765899285157,3.28831448,128.24,128.22,0.05577388]
[1765899286666,0.05831448,128.24,128.22,0.05577388]
[1765899286865,3.28831448,128.24,128.22,0.05577388]
[1765899287756,3.28831448,128.24,128.19,7.0218]
[1765899287957,3.23,128.24,128.19,7.0218]
[1765899288157,3.23,128.22,128.19,7.0218]
[1765899288770,3.28001378,128.22,128.19,7.0218]
[1765899289063,3.28001378,128.22,128.2,7.0217]
[1765899292065,3.28001378,128.22,128.17,109.2533]
[1765899292066,0.05001378,128.22,128.21,9.5312]
[1765899292468,0.05001378,128.22,128.21,7.0212]
[1765899293168,0.05001378,128.22,128.19,7.0218]
[1765899293372,0.05001378,128.22,128.2,1.93666493]
[1765899293869,0.05001378,128.22,128.19,1.93666493]
[1765899294072,3.28001378,128.22,128.15,2.51]
[1765899294273,3.28520524,128.2,128.17,1.93718064]
[1765899294573,3.28520524,128.2,128.17,7.0234]
[1765899295069,3.28520524,128.2,128.14,2.51]
[1765899295267,3.28520524,128.2,128.16,1.93720056]
[1765899295470,3.23,128.19,128.16,1.93720056]
[1765899295767,0.05520524,128.2,128.17,7.0232]
[1765899296074,0.05520524,128.2,128.17,2.51]
[1765899296271,0.05520524,128.2,128.14,111.7871]
[1765899296474,0.05520524,128.2,128.17,7.0232]
[1765899296677,3.28520524,128.2,128.17,7.0232]
[1765899299274,3.28520524,128.2,128.15,7.024]
[1765899299578,3.28520524,128.2,128.14,2.51]
[1765899299878,3.28520524,128.2,128.15,4.44798764]
[1765899300068,3.28520524,128.2,128.15,2.51]
[1765899300272,0.05520524,128.2,128.16,4.4482713]
[1765899300574,3.28520524,128.2,128.14,111.7846]
[1765899300767,3.28520524,128.2,128.16,2.51]
[1765899300965,0.05520524,128.2,128.16,2.51]
[1765899301172,3.23,128.26,128.23,7.0201]
[1765899301375,5.75488097,128.3,128.24,4.38711351]
[1765899301572,5.75488097,128.3,128.26,1.93711351]
[1765899301573,3.23,128.3,128.26,1.93711351]
[1765899301776,3.23,128.27,128.21,2.45]
[1765899301980,3.23,128.25,128.21,2.45]
[1765899302170,3.28381966,128.24,128.22,0.05259573]
[1765899302579,4.84381966,128.24,128.22,0.00259573]
[1765899302779,3.23,128.23,128.22,0.00259573]
[1765899303375,0.05381966,128.24,128.22,2.50259573]
[1765899303579,0.05381966,128.24,128.23,2.5]
[1765899303780,0.05381966,128.24,128.23,4.43784013]
[1765899304081,0.05381966,128.24,128.23,2.5]
[1765899304283,0.00381966,128.24,128.23,4.06]
[1765899305167,0.00381966,128.24,128.23,27.47]
[1765899305384,66.06,128.34,128.3,2.45]
[1765899305778,69.21,128.34,128.27,109.1613]
[1765899306083,69.21,128.34,128.29,4.38468578]
[1765899306279,3.15,128.33,128.28,7.017]
[1765899306472,3.15,128.33,128.26,2.45]
[1765899306473,3.20687285,128.32,128.29,0.05467856]
[1765899309178,0.05687285,128.32,128.29,2.50467856]
[1765899309983,0.05687285,128.32,128.3,9.4661]
[1765899310686,0.05687285,128.32,128.3,7.0161]
[1765899311375,0.05687285,128.32,128.29,0.05467856]
[1765899311574,3.20687285,128.32,128.29,0.05467856]
[1765899313486,3.15,128.3,128.29,0.05467856]
[1765899313782,69.17,128.3,128.29,0.00467856]
[1765899313991,70.73,128.3,128.29,0.00467856]
[1765899314486,69.17,128.3,128.29,0.00467856]
[1765899315189,3.20687285,128.32,128.29,0.00467856]
[1765899315884,0.05687285,128.32,128.29,2.50467856]
[1765899316488,0.05687285,128.32,128.3,7.016]
[1765899316675,0.05687285,128.32,128.3,9.516]
[1765899317289,0.05687285,128.32,128.31,2.5]
[1765899318178,0.05687285,128.32,128.29,0.00467856]
[1765899318179,3.20687285,128.32,128.29,0.00467856]
[1765899318686,0.05687285,128.32,128.3,7.016]
[1765899318881,0.05687285,128.32,128.31,2.5]
[1765899319487,3.15,128.38,128.33,9.4646]
[1765899319689,3.15,128.38,128.33,7.0146]
[1765899320391,0.05407395,128.37,128.34,0.05423298]
[1765899321184,0.05407395,128.37,128.34,2.50423298]
[1765899321584,0.05407395,128.37,128.35,7.0135]
[1765899322085,0.05407395,128.37,128.35,9.4635]
[1765899322294,0.05407395,128.37,128.36,2.45]
[1765899323191,3.15,128.44,128.39,7.0109]
[1765899323681,3.15,128.44,128.39,9.4109]
[1765899324082,0.05565254,128.43,128.4,0.05591417]
[1765899324279,3.20565254,128.43,128.4,0.05591417]
[1765899324892,3.15,128.42,128.4,0.05591417]
[1765899325588,0.05565254,128.43,128.4,0.05591417]
[1765899326187,3.20565254,128.43,128.4,0.05591417]
[1765899327991,7.80327124,128.41,128.33,109.1126]
[1765899328293,66.0,128.4,128.36,4.36621993]
[1765899328592,66.0,128.4,128.37,9.4624]
[1765899328892,66.0,128.4,128.34,111.5545]
[1765899328893,3.15,128.39,128.34,111.5545]
[1765899329096,0.05364288,128.38,128.35,1.96790177]
[1765899329294,0.05364288,128.38,128.36,9.4627]
[1765899329492,0.05364288,128.38,128.37,4.36445887]
[1765899329696,0.05364288,128.38,128.37,2.45]
[1765899330101,10.95327124,128.44,128.39,9.4613]
[1765899330595,9.15862254,128.47,128.41,2.45]
[1765899330786,16.70815221,128.51,128.43,2.45]
[1765899330987,3.15,128.51,128.47,2.45]
[1765899331189,3.20008237,128.5,128.48,0.05196127]
[1765899332393,11.00335361,128.5,128.48,0.00196127]
[1765899332700,3.15,128.49,128.48,0.00196127]
[1765899333398,3.15,128.48,128.41,2.45]
[1765899333596,3.15,128.48,128.42,113.44622021]
[1765899333896,3.25,128.47,128.43,1.90812021]
[1765899334203,3.25,128.47,128.42,9.5093]
[1765899334405,0.05585793,128.46,128.43,0.05485839]
[1765899334906,3.45585793,128.46,128.43,0.00485839]
[1765899335208,3.4,128.43,128.33,111.6641]
[1765899335391,3.4,128.41,128.36,7.0128]
[1765899335904,3.4,128.41,128.38,7.0118]
[1765899336412,3.4510365,128.41,128.38,7.03880636]
[1765899336590,3.4510365,128.41,128.38,0.02700636]
[1765899337414,0.0510365,128.41,128.38,2.57700636]
[1765899337594,0.0510365,128.41,128.39,1.90906187]
[1765899337806,0.0510365,128.41,128.39,11.47036187]
[1765899338003,0.0510365,128.41,128.39,9.5613]
[1765899338505,0.0510365,128.41,128.4,4.45881602]
[1765899338687,0.0510365,128.41,128.4,2.55]
[1765899338893,0.0010365,128.41,128.4,4.11]
[1765899341800,0.0010365,128.41,128.4,2.55]
[1765899342001,0.0010365,128.41,128.4,4.11]
[1765899345096,0.0010365,128.41,128.4,2.55]
[1765899345509,0.0010365,128.41,128.4,4.11]
[1765899347611,0.0010365,128.41,128.4,27.52]
[1765899347809,11.20327124,128.53,128.47,108.9973]
[1765899348109,3.4,128.52,128.48,1.91403465]
[1765899348505,3.4,128.52,128.48,8.92013465]
[1765899348715,3.45422157,128.51,128.49,0.05357572]
[1765899348913,0.05422157,128.51,128.49,0.05357572]
[1765899349112,3.45422157,128.51,128.49,0.05357572]
[1765899349709,3.4,128.5,128.49,0.05357572]
[1765899349904,4.96,128.5,128.49,0.00357572]
[1765899350220,3.4,128.5,128.49,0.00357572]
[1765899350811,4.96,128.5,128.49,0.00357572]
[1765899351022,3.4,128.49,128.42,109.0345]
[1765899351224,3.4,128.49,128.44,1.91501416]
[1765899351518,3.4,128.46,128.4,109.0534]
[1765899351715,3.4,128.43,128.37,111.629]
[1765899351920,3.4,128.43,128.4,7.0107]
[1765899352126,0.0531835,128.41,128.4,7.0107]
[1765899352314,3.4531835,128.41,128.39,0.02446714]
[1765899354524,3.4531835,128.41,128.29,436.5956]
[1765899354525,3.4,128.4,128.31,111.6786]
[1765899354714,3.4,128.4,128.35,1.9189045]
[1765899354928,3.4,128.4,128.34,1.9189045]
[1765899355218,3.4,128.4,128.35,113.58850308]
[1765899355423,0.05528594,128.39,128.36,1.91900308]
[1765899355625,3.45528594,128.39,128.36,1.91900308]
[1765899355819,0.05528594,128.39,128.36,1.91900308]
[1765899356014,0.05528594,128.39,128.36,4.48900308]
[1765899356215,0.05528594,128.39,128.38,2.57]
[1765899356425,0.05528594,128.39,128.37,9.582]
[1765899357017,3.4,128.46,128.39,109.0651]
[1765899357211,3.4,128.46,128.4,1.91967275]
[1765899357412,3.4,128.43,128.36,109.0895]
[1765899357721,3.4,128.4,128.37,1.92094966]
[1765899357923,3.4,128.39,128.32,111.6919]
[1765899358121,7.011,128.4,128.34,1.97150759]
[1765899358122,3.45783248,128.37,128.34,1.97150759]
[1765899358324,3.45783248,128.37,128.34,8.98530759]
[1765899358621,3.45783248,128.37,128.34,0.05009706]
[1765899360626,3.4,128.34,128.26,111.7442]
[1765899360825,3.4,128.34,128.3,1.92644898]
[1765899361020,3.4,128.34,128.26,111.7442]
[1765899361328,3.4,128.34,128.29,1.92654743]
[1765899361716,3.45311762,128.33,128.28,8.94354743]
[1765899361917,3.4,128.31,128.23,111.8166]
[1765899362116,0.05276279,128.28,128.27,1.92678454]
[1765899362430,1.92567279,128.28,128.26,1.97636528]
[1765899362631,1.92567279,128.28,128.26,0.04958074]
[1765899362924,65.92,128.33,128.27,1.92604265]
[1765899363125,65.92,128.33,128.25,112.35]
[1765899363326,0.05781169,128.3,128.28,0.05422431]
[1765899363731,7.80327124,128.29,128.28,0.00422431]
[1765899364230,0.05781169,128.3,128.28,0.00422431]
[1765899364526,0.05781169,128.3,128.29,5.05410072]
[1765899364730,5.65792606,128.38,128.29,5.05410072]
[1765899364731,7.80327124,128.4,128.33,3.13]
[1765899364923,69.3,128.42,128.34,1.92343477]
[1765899365123,3.36,128.41,128.35,7.0133]
[1765899365518,3.36,128.39,128.31,109.1321]
[1765899365723,3.41079662,128.36,128.34,0.0573807]
[1765899367438,0.05079662,128.36,128.34,0.0573807]
[1765899367635,0.05079662,128.36,128.34,3.1873807]
[1765899367931,0.05079662,128.36,128.34,10.2013807]
[1765899368324,3.36,128.42,128.35,5.0528061]
[1765899368525,3.36,128.45,128.37,3.13]
[1765899368731,69.3,128.45,128.37,3.13]
[1765899368926,3.36,128.44,128.37,3.13]
[1765899369131,3.36,128.44,128.39,7.0113]
[1765899369532,3.41563589,128.43,128.4,0.05780296]
[1765899370034,0.05563589,128.43,128.4,0.05780296]
[1765899370431,3.41563589,128.43,128.4,0.05780296]
[1765899370631,0.05563589,128.43,128.4,0.05780296]
[1765899371336,0.05563589,128.43,128.41,5.05179627]
[1765899371533,7.80327124,128.48,128.42,5.05151864]
[1765899371736,11.16327124,128.48,128.43,1.92151864]
[1765899371941,3.36,128.48,128.44,7.0085]
[1765899372144,65.94,128.5,128.44,3.13]
[1765899372638,0.05616361,128.48,128.46,0.05853752]
[1765899373637,11.21943485,128.48,128.38,3.13]
[1765899373839,3.36,128.47,128.41,1.92110923]
[1765899374042,3.36,128.47,128.38,112.2026]
[1765899374340,3.36,128.44,128.39,1.92147159]
[1765899374637,3.36,128.44,128.4,0.0588552]
[1765899374638,3.36,128.41,128.4,0.0588552]
[1765899375836,0.05441575,128.42,128.4,0.0588552]
[1765899376041,3.41441575,128.42,128.4,0.0588552]
[1765899380536,0.05441575,128.42,128.4,0.0588552]
[1765899383244,3.41441575,128.42,128.4,0.0588552]
[1765899383640,3.36,128.38,128.27,112.294]
[1765899383841,3.36,128.34,128.31,1.92371093]
[1765899384044,3.36,128.34,128.28,7.017]
[1765899384245,65.94,128.35,128.31,3.13]
[1765899384452,65.94,128.35,128.32,3.13]
[1765899384649,65.99368276,128.35,128.32,3.18480315]
[1765899384840,65.99368276,128.35,128.32,10.19990315]
[1765899385045,65.99368276,128.35,128.32,3.18480315]
[1765899385247,65.99368276,128.35,128.33,1.92333897]
[1765899385453,65.99368276,128.35,128.33,7.0144]
[1765899385658,65.99368276,128.35,128.32,0.05480315]
[1765899385960,3.36,128.34,128.32,0.05480315]
[1765899386254,3.36,128.33,128.23,112.3265]
[1765899386444,3.36,128.33,128.28,3.13]
[1765899386643,116.18430992,128.38,128.28,3.13]
[1765899386644,3.36,128.36,128.3,5.05265667]
[1765899386840,3.36,128.36,128.27,112.2947]
[1765899387045,3.36,128.36,128.29,1.92279092]
[1765899387245,3.36,128.33,128.24,112.319]
[1765899387446,0.05429456,128.3,128.27,1.92242882]
[1765899388353,3.41429456,128.3,128.25,7.0188]
[1765899388748,3.41429456,128.3,128.24,109.1883]
[1765899388946,3.41429456,128.3,128.25,1.92209535]
[1765899389146,3.41429456,128.3,128.24,109.1883]
[1765899389355,3.41429456,128.3,128.25,1.9220667]
[1765899389543,3.41429456,128.3,128.21,109.2187]
[1765899389748,3.41793081,128.27,128.24,1.92136107]
[1765899389948,3.41793081,128.27,128.23,1.92136107]
[1765899390449,3.36,128.26,128.23,1.92136107]
[1765899390648,3.36,128.26,128.2,3.13]
[1765899390649,3.36,128.26,128.2,7.0214]
[1765899390946,3.36,128.23,128.17,3.13]
[1765899391162,0.05379384,128.21,128.2,1.92072028]